[Event "NJSK 2024 C"]
[Site "Groningen, Netherlands"]
[Date "2024.04.29"]
[Round "4.7"]
[White "De Wit, Evan"]
[Black "Zecha, Oscar"]
[Result "1/2-1/2"]
[TimeControl "90min/40moves + 30min + 30sec/move"]
[WhiteElo "1769"]
[BlackElo "1998"]

1. d4 {[%clk 01:30:57]} {[%emt 00:00:02]} Nf6 {[%clk 01:30:57]} {[%emt
00:00:03]} 2. c4 {[%clk 01:31:11]} {[%emt 00:00:16]} e6 {[%clk 01:31:24]}
{[%emt 00:00:03]} 3. Nc3 {[%clk 01:31:33]} {[%emt 00:00:09]} Bb4 {[%clk
01:31:49]} {[%emt 00:00:05]} 4. e3 {[%clk 01:31:49]} {[%emt 00:00:13]} O-O
{[%clk 01:32:14]} {[%emt 00:00:05]} 5. a3 {[%clk 01:32:16]} {[%emt 00:00:05]}
Bxc3+ {[%clk 01:32:38]} {[%emt 00:00:06]} 6. bxc3 {[%clk 01:32:41]} {[%emt
00:00:04]} c5 {[%clk 01:33:03]} {[%emt 00:00:05]} 7. Bd3 {[%clk 01:33:01]}
{[%emt 00:00:09]} Nc6 {[%clk 01:33:25]} {[%emt 00:00:09]} 8. Ne2 {[%clk
01:33:24]} {[%emt 00:00:07]} b6 {[%clk 01:33:46]} {[%emt 00:00:09]} 9. O-O
{[%clk 01:33:10]} {[%emt 00:00:43]} Ba6 {[%clk 01:33:03]} {[%emt 00:01:14]} 10.
e4 {[%clk 01:33:19]} {[%emt 00:00:21]} Ne8 {[%clk 01:33:28]} {[%emt 00:00:05]}
11. Qc2 {[%clk 01:20:42]} {[%emt 00:13:07]} Na5 {[%clk 01:19:31]} {[%emt
00:14:27]} 12. Be3 {[%clk 01:19:23]} {[%emt 00:01:48]} cxd4 {[%clk 01:15:15]}
{[%emt 00:04:47]} 13. cxd4 {[%clk 01:19:10]} {[%emt 00:00:43]} Bxc4 {[%clk
01:13:05]} {[%emt 00:02:40]} 14. Bd2 {[%clk 01:17:51]} {[%emt 00:01:48]} Bxd3
{[%clk 01:12:34]} {[%emt 00:01:03]} 15. Qxd3 {[%clk 01:18:12]} {[%emt
00:00:08]} Nb7 {[%clk 00:54:47]} {[%emt 00:18:16]} 16. Qa6 {[%clk 01:13:39]}
{[%emt 00:05:03]} Nbd6 {[%clk 00:52:22]} {[%emt 00:02:56]} 17. Bb4 {[%clk
01:12:33]} {[%emt 00:01:36]} Nxe4 {[%clk 00:42:10]} {[%emt 00:10:42]} 18. Bxf8
{[%clk 01:12:48]} {[%emt 00:00:15]} Kxf8 {[%clk 00:42:32]} {[%emt 00:00:09]} 19.
d5 {[%clk 01:06:58]} {[%emt 00:06:19]} exd5 {[%clk 00:37:49]} {[%emt 00:05:13]}
20. Qd3 {[%clk 01:05:07]} {[%emt 00:02:21]} N8f6 {[%clk 00:31:00]} {[%emt
00:07:19]} 21. Nf4 {[%clk 01:03:44]} {[%emt 00:01:53]} Qc7 {[%clk 00:27:49]}
{[%emt 00:03:41]} 22. Nxd5 {[%clk 01:01:48]} {[%emt 00:02:25]} Qd6 {[%clk
00:26:13]} {[%emt 00:02:07]} 23. Nb4 {[%clk 00:59:58]} {[%emt 00:02:20]} Qc5
{[%emt 00:16:53]} 24. Rad1 {[%clk 00:44:58]} Rc8 {[%clk 00:21:25]} {[%emt
00:04:25]} 25. Nd5 {[%clk 00:40:08]} {[%emt 00:05:19]} Qxd5 {[%clk 00:20:36]}
{[%emt 00:01:19]} 26. Qxd5 {[%clk 00:40:20]} {[%emt 00:00:19]} Nxd5 {[%clk
00:21:05]} {[%emt 00:00:01]} 27. Rxd5 {[%clk 00:40:39]} {[%emt 00:00:10]} Nf6
{[%clk 00:21:23]} {[%emt 00:00:13]} 28. Rdd1 {[%clk 00:37:46]} {[%emt
00:03:22]} Rc3 {[%clk 00:20:16]} {[%emt 00:01:38]} 29. a4 {[%clk 00:37:49]}
{[%emt 00:00:27]} Rc4 {[%clk 00:15:35]} {[%emt 00:05:10]} 30. Ra1 {[%clk
00:37:49]} {[%emt 00:00:30]} Ke7 {[%clk 00:13:41]} {[%emt 00:02:25]} 31. Rfb1
{[%clk 00:37:17]} {[%emt 00:01:01]} Kd6 {[%clk 00:13:00]} {[%emt 00:01:11]} 32.
a5 {[%clk 00:35:55]} {[%emt 00:01:53]} Kc5 {[%clk 00:12:52]} {[%emt 00:00:38]}
33. axb6 {[%clk 00:35:13]} {[%emt 00:01:12]} axb6 {[%clk 00:13:06]} {[%emt
00:00:17]} 34. Ra6 {[%clk 00:34:07]} {[%emt 00:01:36]} b5 {[%clk 00:09:59]}
{[%emt 00:03:37]} 35. Ra8 {[%clk 00:34:15]} {[%emt 00:00:20]} b4 {[%clk
00:08:56]} {[%emt 00:01:34]} 36. Rc8+ {[%clk 00:26:49]} {[%emt 00:07:55]} Kd5
{[%clk 00:08:26]} {[%emt 00:01:01]} 37. Rb8 {[%clk 00:26:40]} {[%emt 00:00:39]}
Kd4 {[%clk 00:05:37]} {[%emt 00:03:20]} 38. R8xb4 {[%clk 00:26:46]} {[%emt
00:00:23]} d5 {[%clk 00:05:34]} {[%emt 00:00:32]} 39. Rb7 {[%clk 00:24:25]}
{[%emt 00:02:52]} Kc3 {[%clk 00:04:15]} {[%emt 00:01:47]} 40. Kf1 {[%clk
00:22:07]} {[%emt 00:02:50]} Ne4 {[%clk 00:02:22]} {[%emt 00:02:22]} 41. Ke2
{[%clk 00:19:49]} {[%emt 00:02:48]} Nd6 {[%clk 00:01:23]} {[%emt 00:01:30]} 42.
Rd7 {[%clk 00:19:38]} {[%emt 00:00:40]} Re4+ {[%clk 00:01:32]} {[%emt
00:00:22]} 43. Kd1 {[%clk 00:17:03]} {[%emt 00:03:04]} Nc4 {[%clk 00:00:51]}
{[%emt 00:01:11]} 44. Rxd5 {[%clk 00:16:12]} {[%emt 00:01:20]} Nb2+ {[%clk
00:00:52]} {[%emt 00:00:29]} 45. Rxb2 {[%clk 00:16:32]} {[%emt 00:00:11]} Kxb2
{[%clk 00:01:19]} {[%emt 00:00:04]} 46. Rd7 {[%clk 00:16:55]} {[%emt 00:00:06]}
Rf4 {[%clk 00:01:08]} {[%emt 00:00:40]} 47. f3 {[%clk 00:17:12]} {[%emt
00:00:14]} Kc3 {[%clk 00:00:36]} {[%emt 00:01:02]} 48. Ke2 {[%clk 00:17:37]}
{[%emt 00:00:05]} Kc4 {[%clk 00:00:47]} {[%emt 00:00:19]} 49. Ke3 {[%clk
00:17:52]} {[%emt 00:00:15]} Rf6 {[%clk 00:01:12]} {[%emt 00:00:05]} 50. f4
{[%clk 00:17:55]} {[%emt 00:00:27]} Kc5 {[%clk 00:01:20]} {[%emt 00:00:22]} 51.
Kf3 {[%clk 00:17:55]} {[%emt 00:00:30]} Kc6 {[%clk 00:01:29]} {[%emt 00:00:21]}
52. Rd8 {[%clk 00:17:44]} {[%emt 00:00:41]} g5 {[%clk 00:01:11]} {[%emt
00:00:47]} 53. g3 {[%clk 00:17:50]} {[%emt 00:00:25]} gxf4 {[%clk 00:01:38]}
{[%emt 00:00:03]} 54. gxf4 {[%clk 00:17:26]} {[%emt 00:00:51]} 1/2-1/2

[Event "NJSK 2024 C"]
[Site "Groningen, Netherlands"]
[Date "2024.04.29"]
[Round "4.8"]
[White "Leenen, Boyd"]
[Black "Tetova, Amir"]
[Result "1/2-1/2"]
[TimeControl "90min/40moves + 30min + 30sec/move"]
[WhiteElo "1920"]
[BlackElo "1767"]

1. d4 {[%clk 01:30:59]} {[%emt 00:00:01]} Nf6 {[%clk 01:30:57]} {[%emt
00:00:03]} 2. c4 {[%clk 01:31:24]} {[%emt 00:00:05]} g6 {[%clk 01:31:22]}
{[%emt 00:00:05]} 3. Nc3 {[%clk 01:31:48]} {[%emt 00:00:06]} Bg7 {[%clk
01:31:46]} {[%emt 00:00:06]} 4. e4 {[%clk 01:32:15]} {[%emt 00:00:03]} d6
{[%clk 01:32:11]} {[%emt 00:00:05]} 5. f3 {[%clk 01:32:38]} {[%emt 00:00:07]}
O-O {[%clk 01:32:26]} {[%emt 00:00:15]} 6. Be3 {[%clk 01:33:00]} {[%emt
00:00:07]} e5 {[%clk 01:32:38]} {[%emt 00:00:19]} 7. d5 {[%clk 01:33:18]}
{[%emt 00:00:12]} c5 {[%clk 01:32:54]} {[%emt 00:00:15]} 8. Qd2 {[%clk
01:33:25]} {[%emt 00:00:22]} a5 {[%clk 01:33:12]} {[%emt 00:00:12]} 9. g4
{[%clk 01:33:16]} {[%emt 00:00:38]} Bd7 {[%clk 01:27:36]} {[%emt 00:06:07]} 10.
O-O-O {[%clk 01:32:53]} {[%emt 00:00:52]} Na6 {[%clk 01:22:58]} {[%emt
00:05:09]} 11. Bh6 {[%clk 01:32:31]} {[%emt 00:00:52]} Nc7 {[%clk 01:21:12]}
{[%emt 00:02:17]} 12. a4 {[%clk 01:31:21]} {[%emt 00:01:38]} Qe8 {[%clk
01:19:48]} {[%emt 00:01:55]} 13. b3 {[%clk 01:29:25]} {[%emt 00:02:26]} Na6
{[%clk 01:13:00]} {[%emt 00:07:18]} 14. h4 {[%clk 01:28:23]} {[%emt 00:01:32]}
Nb4 {[%clk 01:09:48]} {[%emt 00:03:43]} 15. h5 {[%clk 01:28:02]} {[%emt
00:00:50]} Qe7 {[%clk 01:07:23]} {[%emt 00:02:55]} 16. Bxg7 {[%clk 01:23:34]}
{[%emt 00:04:57]} Kxg7 {[%clk 01:07:21]} {[%emt 00:00:33]} 17. hxg6 {[%clk
01:23:58]} {[%emt 00:00:05]} fxg6 {[%clk 01:07:34]} {[%emt 00:00:18]} 18. Qh6+
{[%clk 01:24:00]} {[%emt 00:00:28]} Kg8 {[%clk 01:07:57]} {[%emt 00:00:06]} 19.
Be2 {[%clk 01:20:24]} {[%emt 00:04:06]} Qg7 {[%clk 01:07:49]} {[%emt 00:00:39]}
20. Qg5 {[%clk 01:20:26]} {[%emt 00:00:25]} Kf7 {[%clk 01:04:34]} {[%emt
00:03:49]} 21. Rf1 {[%clk 01:14:50]} {[%emt 00:06:02]} Rh8 {[%clk 01:03:16]}
{[%emt 00:01:51]} 22. Qe3 {[%clk 01:10:44]} {[%emt 00:04:36]} g5 {[%clk
01:02:34]} {[%emt 00:01:12]} 23. Rf2 {[%clk 01:09:02]} {[%emt 00:02:12]} h6
{[%clk 01:01:36]} {[%emt 00:01:28]} 24. Rfh2 {[%clk 01:09:19]} {[%emt
00:00:12]} Ke7 {[%clk 01:00:22]} {[%emt 00:01:45]} 25. Bd1 {[%clk 01:09:15]}
{[%emt 00:00:34]} b6 {[%clk 00:54:54]} {[%emt 00:05:59]} 26. Nge2 {[%clk
01:09:35]} {[%emt 00:00:10]} Raf8 {[%clk 00:54:14]} {[%emt 00:01:09]} 27. Ng3
{[%clk 01:09:12]} {[%emt 00:00:52]} Kd8 {[%clk 00:53:46]} {[%emt 00:00:59]} 28.
Be2 {[%clk 01:09:06]} {[%emt 00:00:34]} Ke7 {[%clk 00:52:13]} {[%emt 00:02:05]}
29. Qg1 {[%clk 01:08:34]} {[%emt 00:00:59]} Rh7 {[%clk 00:51:19]} {[%emt
00:01:27]} 30. Nd1 {[%clk 01:08:38]} {[%emt 00:00:25]} Rfh8 {[%clk 00:48:28]}
{[%emt 00:03:20]} 31. Ne3 {[%clk 01:09:00]} {[%emt 00:00:08]} Qg6 {[%clk
00:48:45]} {[%emt 00:00:13]} 32. Rh3 {[%clk 01:06:48]} {[%emt 00:02:42]} h5
{[%clk 00:45:43]} {[%emt 00:03:33]} 33. Nef5+ {[%clk 01:04:10]} {[%emt
00:03:08]} Bxf5 {[%clk 00:46:06]} {[%emt 00:00:07]} 34. Nxf5+ {[%clk 01:04:28]}
{[%emt 00:00:12]} Kd7 {[%emt 00:04:36]} 1/2-1/2

[Event "NJSK 2024 C"]
[Site "Groningen, Netherlands"]
[Date "2024.04.29"]
[Round "4.9"]
[White "Roorda, Cas"]
[Black "Klein Tuente, Sam"]
[Result "1-0"]
[TimeControl "90min/40moves + 30min + 30sec/move"]
[WhiteElo "1828"]
[BlackElo "1732"]

1. e4 {[%clk 01:30:58]} {[%emt 00:00:01]} c5 {[%clk 01:30:57]} {[%emt
00:00:04]} 2. Nf3 {[%clk 01:31:20]} {[%emt 00:00:08]} e6 {[%clk 01:31:18]}
{[%emt 00:00:08]} 3. d4 {[%clk 01:31:47]} {[%emt 00:00:03]} cxd4 {[%clk
01:31:45]} {[%emt 00:00:03]} 4. Nxd4 {[%clk 01:32:15]} {[%emt 00:00:03]} Nc6
{[%clk 01:32:10]} {[%emt 00:00:05]} 5. Nc3 {[%clk 01:32:42]} {[%emt 00:00:02]}
Qc7 {[%clk 01:32:33]} {[%emt 00:00:07]} 6. Be3 {[%clk 01:33:08]} {[%emt
00:00:05]} a6 {[%clk 01:32:58]} {[%emt 00:00:05]} 7. g4 {[%clk 01:33:33]}
{[%emt 00:00:04]} b5 {[%clk 01:23:36]} {[%emt 00:09:52]} 8. Nxc6 {[%clk
01:33:59]} {[%emt 00:00:05]} dxc6 {[%clk 01:22:42]} {[%emt 00:01:24]} 9. f4
{[%clk 01:24:00]} {[%emt 00:10:27]} Bb7 {[%clk 01:20:18]} {[%emt 00:02:55]} 10.
Bg2 {[%clk 01:17:31]} {[%emt 00:06:59]} Rd8 {[%clk 01:16:55]} {[%emt 00:03:53]}
11. Qf3 {[%clk 01:10:10]} {[%emt 00:07:51]} Bb4 {[%clk 01:14:04]} {[%emt
00:03:21]} 12. O-O {[%clk 00:57:05]} {[%emt 00:13:35]} c5 {[%clk 01:11:13]}
{[%emt 00:03:21]} 13. Ne2 {[%clk 00:53:45]} {[%emt 00:03:50]} f5 {[%clk
01:00:00]} {[%emt 00:11:43]} 14. gxf5 {[%clk 00:45:40]} {[%emt 00:08:35]} exf5
{[%clk 00:57:15]} {[%emt 00:03:15]} 15. Qf2 {[%clk 00:40:41]} {[%emt 00:05:29]}
Nf6 {[%clk 00:53:02]} {[%emt 00:04:43]} 16. exf5 {[%clk 00:28:06]} {[%emt
00:13:07]} O-O {[%clk 00:45:28]} {[%emt 00:08:03]} 17. h3 {[%clk 00:25:15]}
{[%emt 00:03:21]} Bxg2 {[%clk 00:43:26]} {[%emt 00:02:32]} 18. Kxg2 {[%clk
00:22:21]} {[%emt 00:03:24]} Rfe8 {[%clk 00:39:43]} {[%emt 00:04:13]} 19. c3
{[%clk 00:16:46]} {[%emt 00:06:05]} Nd5 {[%clk 00:38:57]} {[%emt 00:01:16]} 20.
Bd2 {[%clk 00:17:01]} {[%emt 00:00:15]} Ba5 {[%clk 00:37:50]} {[%emt 00:01:36]}
21. Ng3 {[%clk 00:16:15]} {[%emt 00:01:17]} c4 {[%emt 00:07:14]} 22. Rae1
{[%clk 00:15:37]} {[%emt 00:01:06]} Bb6 {[%clk 00:30:48]} {[%emt 00:00:50]} 23.
Qf3 {[%clk 00:16:00]} {[%emt 00:00:07]} Rxe1 {[%clk 00:27:33]} {[%emt
00:03:45]} 24. Rxe1 {[%clk 00:16:07]} {[%emt 00:00:23]} Nf6 {[%clk 00:25:37]}
{[%emt 00:02:25]} 25. Be3 {[%clk 00:13:15]} {[%emt 00:03:23]} h6 {[%clk
00:20:38]} {[%emt 00:05:29]} 26. Bxb6 {[%clk 00:09:23]} {[%emt 00:04:23]} Qxb6
{[%clk 00:21:05]} {[%emt 00:00:02]} 27. Qe3 {[%clk 00:08:17]} {[%emt 00:01:36]}
Qc6+ {[%clk 00:20:23]} {[%emt 00:01:12]} 28. Qf3 {[%clk 00:08:31]} {[%emt
00:00:17]} Nd5 {[%clk 00:18:29]} {[%emt 00:02:23]} 29. Kh1 {[%clk 00:07:30]}
{[%emt 00:01:30]} Rd6 {[%clk 00:12:39]} {[%emt 00:06:21]} 30. Kh2 {[%clk
00:07:10]} {[%emt 00:00:50]} Qc8 {[%clk 00:10:07]} {[%emt 00:03:02]} 31. Rd1
{[%clk 00:06:26]} {[%emt 00:01:15]} Qd8 {[%clk 00:10:17]} {[%emt 00:00:20]} 32.
Ne4 {[%clk 00:06:22]} {[%emt 00:00:33]} Rd7 {[%clk 00:08:29]} {[%emt 00:02:18]}
33. Nc5 {[%clk 00:06:32]} {[%emt 00:00:20]} Rd6 {[%clk 00:08:39]} {[%emt
00:00:20]} 34. Nb7 {[%clk 00:06:38]} {[%emt 00:00:25]} Qb6 {[%clk 00:06:53]}
{[%emt 00:02:16]} 35. Nxd6 {[%clk 00:06:56]} {[%emt 00:00:12]} Ne3 {[%clk
00:07:04]} {[%emt 00:00:18]} 36. Re1 {[%clk 00:06:30]} {[%emt 00:00:57]} Nd5
{[%clk 00:06:54]} {[%emt 00:00:39]} 37. Qxd5+ {[%clk 00:06:54]} {[%emt
00:00:06]} Kh7 {[%clk 00:07:17]} {[%emt 00:00:06]} 38. Ne4 {[%clk 00:06:57]}
{[%emt 00:00:26]} Qc7 {[%clk 00:07:16]} {[%emt 00:00:32]} 39. Qe5 {[%clk
00:07:08]} {[%emt 00:00:20]} 1-0

[Event "NJSK 2024 C"]
[Site "Groningen, Netherlands"]
[Date "2024.04.29"]
[Round "4.10"]
[White "Frederiks, Jesse"]
[Black "Haque, Nishaaz"]
[Result "1-0"]
[TimeControl "90min/40moves + 30min + 30sec/move"]
[WhiteElo "1718"]
[BlackElo "1803"]

1. d4 {[%clk 01:30:51]} {[%emt 00:00:08]} d5 {[%clk 01:30:47]} {[%emt
00:00:13]} 2. c4 {[%clk 01:31:13]} {[%emt 00:00:09]} e6 {[%clk 01:31:13]}
{[%emt 00:00:03]} 3. Nc3 {[%clk 01:31:38]} {[%emt 00:00:05]} a6 {[%clk
01:31:38]} {[%emt 00:00:04]} 4. cxd5 {[%clk 01:31:06]} {[%emt 00:01:03]} exd5
{[%clk 01:32:00]} {[%emt 00:00:08]} 5. Nf3 {[%clk 01:30:36]} {[%emt 00:01:00]}
c6 {[%clk 01:32:17]} {[%emt 00:00:12]} 6. Bf4 {[%clk 01:30:06]} {[%emt
00:01:01]} Bd6 {[%clk 01:32:05]} {[%emt 00:00:42]} 7. Bxd6 {[%clk 01:29:49]}
{[%emt 00:00:47]} Qxd6 {[%clk 01:32:25]} {[%emt 00:00:10]} 8. e3 {[%clk
01:30:08]} {[%emt 00:00:11]} Ne7 {[%clk 01:32:18]} {[%emt 00:00:37]} 9. Bd3
{[%clk 01:29:31]} {[%emt 00:01:07]} Bf5 {[%clk 01:32:11]} {[%emt 00:00:36]} 10.
O-O {[%clk 01:29:12]} {[%emt 00:00:50]} O-O {[%clk 01:32:08]} {[%emt 00:00:33]}
11. Ne2 {[%clk 01:25:56]} {[%emt 00:03:47]} Nd7 {[%clk 01:28:54]} {[%emt
00:03:44]} 12. Ng3 {[%clk 01:24:12]} {[%emt 00:02:14]} Bg6 {[%clk 01:28:08]}
{[%emt 00:01:15]} 13. Bxg6 {[%clk 01:23:18]} {[%emt 00:01:25]} hxg6 {[%clk
01:21:43]} {[%emt 00:06:54]} 14. Qd2 {[%clk 01:20:48]} {[%emt 00:03:01]} Nf5
{[%clk 01:20:48]} {[%emt 00:01:24]} 15. Nxf5 {[%clk 01:17:52]} {[%emt
00:03:28]} gxf5 {[%clk 01:21:07]} {[%emt 00:00:11]} 16. Ne1 {[%clk 01:09:51]}
{[%emt 00:08:29]} Nf6 {[%clk 01:14:44]} {[%emt 00:06:52]} 17. f3 {[%clk
01:09:46]} {[%emt 00:00:37]} g6 {[%clk 01:07:13]} {[%emt 00:08:01]} 18. Nd3
{[%clk 01:07:28]} {[%emt 00:02:48]} Rfe8 {[%clk 00:57:53]} {[%emt 00:09:47]} 19.
Rac1 {[%clk 01:02:29]} {[%emt 00:05:32]} Nd7 {[%clk 00:53:11]} {[%emt
00:05:11]} 20. Rfe1 {[%clk 01:01:36]} {[%emt 00:01:24]} Re6 {[%clk 00:45:30]}
{[%emt 00:08:42]} 21. Qf2 {[%clk 00:46:39]} {[%emt 00:15:55]} Rae8 {[%clk
00:42:33]} {[%emt 00:03:27]} 22. Nf4 {[%clk 00:44:21]} {[%emt 00:02:50]} R6e7
{[%clk 00:40:43]} {[%emt 00:02:19]} 23. h4 {[%clk 00:40:14]} {[%emt 00:04:35]}
Nf8 {[%clk 00:34:47]} {[%emt 00:06:27]} 24. g3 {[%clk 00:34:53]} {[%emt
00:05:53]} Ne6 {[%clk 00:31:16]} {[%emt 00:04:00]} 25. Nxe6 {[%clk 00:33:56]}
{[%emt 00:01:27]} Rxe6 {[%clk 00:30:29]} {[%emt 00:01:17]} 26. Rc2 {[%clk
00:31:31]} {[%emt 00:02:55]} Qe7 {[%clk 00:30:18]} {[%emt 00:00:41]} 27. Rce2
{[%clk 00:31:52]} {[%emt 00:00:09]} Kg7 {[%clk 00:28:59]} {[%emt 00:01:49]} 28.
Kg2 {[%clk 00:29:31]} {[%emt 00:02:51]} b6 {[%clk 00:26:54]} {[%emt 00:02:36]}
29. f4 {[%clk 00:23:22]} {[%emt 00:06:38]} c5 {[%clk 00:23:47]} {[%emt
00:03:37]} 30. Kf1 {[%clk 00:21:29]} {[%emt 00:02:23]} Re4 {[%clk 00:22:27]}
{[%emt 00:01:50]} 31. Qf3 {[%clk 00:20:31]} {[%emt 00:01:28]} Qd7 {[%clk
00:21:57]} {[%emt 00:00:59]} 32. Rd1 {[%clk 00:13:11]} {[%emt 00:07:51]} c4
{[%clk 00:15:16]} {[%emt 00:07:11]} 33. Kf2 {[%clk 00:11:51]} {[%emt 00:01:50]}
Qa4 {[%clk 00:15:16]} {[%emt 00:00:29]} 34. Rg1 {[%clk 00:08:00]} {[%emt
00:04:20]} Qxa2 {[%clk 00:07:34]} {[%emt 00:08:14]} 35. h5 {[%clk 00:06:39]}
{[%emt 00:01:51]} Rh8 {[%clk 00:04:21]} {[%emt 00:03:42]} 36. g4 {[%clk
00:06:54]} {[%emt 00:00:15]} fxg4 {[%clk 00:03:53]} {[%emt 00:00:58]} 37. Qxg4
{[%clk 00:07:10]} {[%emt 00:00:14]} Re6 {[%clk 00:03:32]} {[%emt 00:00:51]} 38.
Qf5 {[%clk 00:03:16]} {[%emt 00:04:24]} Qa5 {[%clk 00:00:35]} {[%emt 00:03:27]}
39. Rxg6+ {[%clk 00:03:19]} {[%emt 00:00:27]} Rxg6 {[%clk 00:00:55]} {[%emt
00:00:11]} 40. hxg6 {[%clk 00:03:42]} {[%emt 00:00:06]} Rh2+ {[%clk 00:00:52]}
{[%emt 00:00:33]} 41. Kf3 {[%clk 00:04:06]} {[%emt 00:00:06]} Rxe2 {[%clk
00:00:00]} {time} 1-0

[Event "NJSK 2024 C"]
[Site "Groningen, Netherlands"]
[Date "2024.04.29"]
[Round "4.11"]
[White "Etienne, Ghilon"]
[Black "Ngangbam, Chingthang"]
[Result "0-1"]
[TimeControl "90min/40moves + 30min + 30sec/move"]
[WhiteElo "1793"]
[BlackElo "1713"]

1. e4 {[%clk 01:30:58]} {[%emt 00:00:01]} c5 {[%clk 01:30:46]} {[%emt
00:00:14]} 2. Nf3 {[%clk 01:31:25]} {[%emt 00:00:03]} d6 {[%clk 01:31:12]}
{[%emt 00:00:05]} 3. d4 {[%clk 01:31:52]} {[%emt 00:00:02]} cxd4 {[%clk
01:31:36]} {[%emt 00:00:06]} 4. Nxd4 {[%clk 01:32:19]} {[%emt 00:00:03]} Nf6
{[%clk 01:32:00]} {[%emt 00:00:06]} 5. Nc3 {[%clk 01:32:47]} {[%emt 00:00:03]}
g6 {[%clk 01:32:15]} {[%emt 00:00:15]} 6. f3 {[%clk 01:33:11]} {[%emt
00:00:05]} Bg7 {[%clk 01:32:40]} {[%emt 00:00:05]} 7. Be3 {[%clk 01:33:38]}
{[%emt 00:00:03]} O-O {[%clk 01:33:04]} {[%emt 00:00:06]} 8. Qd2 {[%clk
01:34:06]} {[%emt 00:00:03]} Nc6 {[%clk 01:33:25]} {[%emt 00:00:09]} 9. g4
{[%clk 01:34:28]} {[%emt 00:00:08]} d5 {[%clk 01:26:52]} {[%emt 00:07:03]} 10.
exd5 {[%clk 01:34:00]} {[%emt 00:00:58]} Nxd5 {[%clk 01:27:07]} {[%emt
00:00:14]} 11. Nxc6 {[%clk 01:34:14]} {[%emt 00:00:17]} bxc6 {[%clk 01:27:25]}
{[%emt 00:00:12]} 12. Nxd5 {[%clk 01:34:08]} {[%emt 00:00:35]} cxd5 {[%clk
01:27:39]} {[%emt 00:00:16]} 13. O-O-O {[%clk 01:34:15]} {[%emt 00:00:24]} Rb8
{[%clk 01:21:00]} {[%emt 00:07:09]} 14. c3 {[%clk 01:33:27]} {[%emt 00:01:17]}
Qc7 {[%clk 01:14:30]} {[%emt 00:07:00]} 15. Bh6 {[%clk 01:17:19]} {[%emt
00:16:38]} Bxh6 {[%clk 01:06:34]} {[%emt 00:08:26]} 16. Qxh6 {[%clk 01:17:47]}
Qa5 {[%clk 01:06:34]} {[%emt 00:00:32]} 17. a3 {[%clk 01:17:19]} {[%emt
00:00:58]} Qb6 {[%clk 01:05:59]} {[%emt 00:01:04]} 18. Qd2 {[%clk 01:17:10]}
{[%emt 00:00:41]} d4 {[%clk 01:05:24]} {[%emt 00:01:04]} 19. cxd4 {[%clk
01:16:06]} {[%emt 00:01:34]} Be6 {[%clk 01:05:05]} {[%emt 00:00:48]} 20. b4
{[%clk 01:03:59]} {[%emt 00:12:38]} a5 {[%clk 00:55:15]} {[%emt 00:10:20]} 21.
b5 {[%clk 01:03:31]} {[%emt 00:00:59]} Bb3 {[%clk 00:55:17]} {[%emt 00:00:28]}
22. Re1 {[%clk 01:02:14]} {[%emt 00:01:47]} Rfc8+ {[%clk 00:55:06]} {[%emt
00:00:40]} 23. Kb1 {[%clk 01:02:38]} {[%emt 00:00:06]} Qd6 {[%clk 00:54:26]}
{[%emt 00:01:09]} 24. Qb2 {[%clk 01:02:02]} {[%emt 00:01:06]} a4 {[%clk
00:51:51]} {[%emt 00:03:05]} 25. Bd3 {[%clk 01:00:39]} {[%emt 00:01:54]} Qd5
{[%clk 00:50:51]} {[%emt 00:01:30]} 26. Rhf1 {[%clk 00:56:49]} {[%emt
00:04:19]} Bc2+ {[%clk 00:50:27]} {[%emt 00:00:54]} 27. Bxc2 {[%clk 00:49:12]}
{[%emt 00:08:07]} Rxb5 {[%clk 00:50:19]} {[%emt 00:00:39]} 28. Rd1 {[%clk
00:48:08]} {[%emt 00:01:35]} Rxb2+ {[%clk 00:48:35]} {[%emt 00:02:14]} 29. Kxb2
{[%clk 00:48:00]} {[%emt 00:00:37]} Qb5+ {[%clk 00:48:45]} {[%emt 00:00:19]} 30.
Kc1 {[%clk 00:48:26]} {[%emt 00:00:05]} Qe2 {[%clk 00:49:04]} {[%emt 00:00:11]}
0-1